[Event "December 12 Early 2023"]
[Site "https://www.chess.com"]
[Date "2023.12.12"]
[Round "2"]
[White "Cordoba Roa, Angel Gabriel"]
[Black "Khripachenko, Alexander"]
[Result "1/2-1/2"]
[Board "59"]
[TimeControl "180+1"]
[WhiteFideId "3957624"]
[BlackFideId "54184975"]
[WhiteElo "2555"]
[BlackElo "2804"]
[WhiteTeam "COL"]
[BlackTeam "FID"]
[WhiteClock "0:00:14"]
[BlackClock "0:00:13"]

1. e4 {[%clk 0:03:00]}  c5 {[%clk 0:02:59]} 2. Nf3 {[%clk 0:03:00]}  e6 {[%clk 0:02:59]} 3. g3 {[%clk 0:03:00]}  Nc6 {[%clk 0:02:58]} 4. Bg2 {[%clk 0:03:00]}  Nf6 {[%clk 0:02:58]} 5. Qe2 {[%clk 0:02:51]}  d6 {[%clk 0:02:55]} 6. O-O {[%clk 0:02:51]}  Be7 {[%clk 0:02:55]} 7. c3 {[%clk 0:02:51]}  e5 {[%clk 0:02:53]} 8. Rd1 {[%clk 0:02:51]}  O-O {[%clk 0:02:53]} 9. Na3 {[%clk 0:02:48]}  Re8 {[%clk 0:02:49]} 10. Nc2 {[%clk 0:02:49]}  Bf8 {[%clk 0:02:44]} 11. b4 {[%clk 0:02:47]}  cxb4 {[%clk 0:02:41]} 12. cxb4 {[%clk 0:02:48]}  d5 {[%clk 0:02:41]} 13. d3 {[%clk 0:02:47]}  Nxb4 {[%clk 0:02:40]} 14. Nxb4 {[%clk 0:02:47]}  Bxb4 {[%clk 0:02:41]} 15. exd5 {[%clk 0:02:47]}  Nxd5 {[%clk 0:02:41]} 16. Bb2 {[%clk 0:02:47]}  Bc3 {[%clk 0:02:41]} 17. Rac1 {[%clk 0:02:46]}  Bxb2 {[%clk 0:02:41]} 18. Qxb2 {[%clk 0:02:47]}  Qb6 {[%clk 0:02:22]} 19. Qa1 {[%clk 0:02:34]}  Qd6 {[%clk 0:02:13]} 20. Nd2 {[%clk 0:02:31]}  Bf5 {[%clk 0:02:07]} 21. Nc4 {[%clk 0:02:30]}  Qe6 {[%clk 0:02:02]} 22. Re1 {[%clk 0:02:27]}  f6 {[%clk 0:02:02]} 23. f4 {[%clk 0:02:11]}  Bxd3 {[%clk 0:01:41]} 24. fxe5 {[%clk 0:02:06]}  Bxc4 {[%clk 0:01:40]} 25. Rxc4 {[%clk 0:02:02]}  fxe5 {[%clk 0:01:40]} 26. Rce4 {[%clk 0:02:00]}  Qb6+ {[%clk 0:01:38]} 27. Kh1 {[%clk 0:01:59]}  Nf6 {[%clk 0:01:39]} 28. Rxe5 {[%clk 0:01:59]}  Rxe5 {[%clk 0:01:38]} 29. Qxe5 {[%clk 0:02:00]}  Re8 {[%clk 0:01:36]} 30. Qc3 {[%clk 0:01:53]}  Rxe1+ {[%clk 0:01:36]} 31. Qxe1 {[%clk 0:01:54]}  Kf7 {[%clk 0:01:28]} 32. h3 {[%clk 0:01:52]}  Qc7 {[%clk 0:01:22]} 33. g4 {[%clk 0:01:44]}  h6 {[%clk 0:01:20]} 34. a4 {[%clk 0:01:40]}  b6 {[%clk 0:01:20]} 35. Qb1 {[%clk 0:01:37]}  Qc3 {[%clk 0:01:19]} 36. Qb5 {[%clk 0:01:30]}  Qc1+ {[%clk 0:01:18]} 37. Kh2 {[%clk 0:01:30]}  Qf4+ {[%clk 0:01:19]} 38. Kg1 {[%clk 0:01:31]}  Qd4+ {[%clk 0:01:20]} 39. Kh2 {[%clk 0:01:31]}  Qc5 {[%clk 0:01:20]} 40. Qa6 {[%clk 0:01:29]}  Qc7+ {[%clk 0:01:20]} 41. Kg1 {[%clk 0:01:28]}  Ke7 {[%clk 0:01:19]} 42. Qe2+ {[%clk 0:01:22]}  Kf8 {[%clk 0:01:19]} 43. Qa6 {[%clk 0:01:22]}  Nd7 {[%clk 0:01:18]} 44. Qf1+ {[%clk 0:01:21]}  Nf6 {[%clk 0:01:17]} 45. Qa6 {[%clk 0:01:21]}  Qe7 {[%clk 0:01:18]} 46. Qc8+ {[%clk 0:01:20]}  Kf7 {[%clk 0:01:17]} 47. Qc4+ {[%clk 0:01:21]}  Kf8 {[%clk 0:00:54]} 48. Qc8+ {[%clk 0:01:16]}  Ne8 {[%clk 0:00:54]} 49. Qa8 {[%clk 0:01:11]}  Qe1+ {[%clk 0:00:50]} 50. Kh2 {[%clk 0:01:08]}  Qe5+ {[%clk 0:00:50]} 51. Kh1 {[%clk 0:00:56]}  a5 {[%clk 0:00:49]} 52. Bc6 {[%clk 0:00:55]}  Qe1+ {[%clk 0:00:43]} 53. Kg2 {[%clk 0:00:54]}  Qe2+ {[%clk 0:00:44]} 54. Kg1 {[%clk 0:00:54]}  Qe3+ {[%clk 0:00:44]} 55. Kg2 {[%clk 0:00:55]}  Kf7 {[%clk 0:00:39]} 56. Bxe8+ {[%clk 0:00:48]}  Qxe8 {[%clk 0:00:40]} 57. Qb7+ {[%clk 0:00:49]}  Qe7 {[%clk 0:00:40]} 58. Qxb6 {[%clk 0:00:48]}  Qe4+ {[%clk 0:00:40]} 59. Kg3 {[%clk 0:00:46]}  Qxa4 {[%clk 0:00:41]} 60. Qc7+ {[%clk 0:00:39]}  Kg6 {[%clk 0:00:34]} 61. Qd6+ {[%clk 0:00:37]}  Kh7 {[%clk 0:00:31]} 62. Qd3+ {[%clk 0:00:36]}  Kg8 {[%clk 0:00:31]} 63. Qd5+ {[%clk 0:00:34]}  Kf8 {[%clk 0:00:31]} 64. Qf5+ {[%clk 0:00:33]}  Kg8 {[%clk 0:00:25]} 65. Qe6+ {[%clk 0:00:33]}  Kh8 {[%clk 0:00:21]} 66. Qc8+ {[%clk 0:00:33]}  Kh7 {[%clk 0:00:22]} 67. Qf5+ {[%clk 0:00:34]}  Kg8 {[%clk 0:00:23]} 68. Qe6+ {[%clk 0:00:33]}  Kf8 {[%clk 0:00:24]} 69. Qf5+ {[%clk 0:00:33]}  Ke7 {[%clk 0:00:23]} 70. Qe5+ {[%clk 0:00:33]}  Kd8 {[%clk 0:00:24]} 71. Qxg7 {[%clk 0:00:32]}  Qb3+ {[%clk 0:00:24]} 72. Kh4 {[%clk 0:00:31]}  a4 {[%clk 0:00:24]} 73. Qxh6 {[%clk 0:00:28]}  a3 {[%clk 0:00:25]} 74. Qf8+ {[%clk 0:00:29]}  Kd7 {[%clk 0:00:25]} 75. Qf5+ {[%clk 0:00:29]}  Kd6 {[%clk 0:00:25]} 76. Qf6+ {[%clk 0:00:29]}  Kc5 {[%clk 0:00:25]} 77. Qe5+ {[%clk 0:00:30]}  Kc6 {[%clk 0:00:23]} 78. Qf6+ {[%clk 0:00:28]}  Kb5 {[%clk 0:00:24]} 79. Qe5+ {[%clk 0:00:26]}  Kc4 {[%clk 0:00:24]} 80. g5 {[%clk 0:00:23]}  a2 {[%clk 0:00:23]} 81. g6 {[%clk 0:00:22]}  Kb4 {[%clk 0:00:12]} 82. g7 {[%clk 0:00:19]}  Qc4+ {[%clk 0:00:12]} 83. Kg5 {[%clk 0:00:19]}  Qf7 {[%clk 0:00:11]} 84. Qf4+ {[%clk 0:00:16]}  Qxf4+ {[%clk 0:00:11]} 85. Kxf4 {[%clk 0:00:17]}  a1=Q {[%clk 0:00:11]} 86. g8=Q {[%clk 0:00:18]}  Qf1+ {[%clk 0:00:11]} 87. Ke5 {[%clk 0:00:17]}  Qxh3 {[%clk 0:00:11]} 88. Qb8+ {[%clk 0:00:17]}  Kc3 {[%clk 0:00:11]} 89. Qc7+ {[%clk 0:00:16]}  Kd2 {[%clk 0:00:12]} 90. Qa5+ {[%clk 0:00:15]}  Qc3+ {[%clk 0:00:12]} 91. Qxc3+ {[%clk 0:00:14]}  Kxc3 {[%clk 0:00:13]} 1/2-1/2

[Event "December 12 Early 2023"]
[Site "https://www.chess.com"]
[Date "2023.12.12"]
[Round "2"]
[White "Dragun, Kamil"]
[Black "Kunin, Vitaly"]
[Result "0-1"]
[Board "60"]
[TimeControl "180+1"]
[WhiteFideId "1134167"]
[BlackFideId "4128737"]
[WhiteElo "2800"]
[BlackElo "2552"]
[WhiteTeam "POL"]
[BlackTeam "GER"]
[WhiteClock "0:00:04"]
[BlackClock "0:00:02"]

1. d4 {[%clk 0:02:56]}  d5 {[%clk 0:02:57]} 2. c4 {[%clk 0:02:56]}  dxc4 {[%clk 0:02:57]} 3. Nf3 {[%clk 0:02:55]}  Nf6 {[%clk 0:02:57]} 4. e3 {[%clk 0:02:55]}  Bg4 {[%clk 0:02:57]} 5. Bxc4 {[%clk 0:02:53]}  e6 {[%clk 0:02:57]} 6. Nbd2 {[%clk 0:02:46]}  c5 {[%clk 0:02:56]} 7. Qa4+ {[%clk 0:02:41]}  Nbd7 {[%clk 0:02:50]} 8. Ne5 {[%clk 0:02:41]}  a6 {[%clk 0:02:14]} 9. Nxg4 {[%clk 0:02:35]}  Nxg4 {[%clk 0:02:14]} 10. dxc5 {[%clk 0:02:25]}  Ne5 {[%clk 0:02:14]} 11. b4 {[%clk 0:02:02]}  b5 {[%clk 0:02:09]} 12. cxb6 {[%clk 0:02:01]}  Qxb6 {[%clk 0:02:09]} 13. a3 {[%clk 0:01:45]}  Be7 {[%clk 0:01:57]} 14. O-O {[%clk 0:01:45]}  O-O {[%clk 0:01:55]} 15. Bb2 {[%clk 0:01:45]}  a5 {[%clk 0:01:52]} 16. Bd4 {[%clk 0:01:41]}  Qb7 {[%clk 0:01:50]} 17. b5 {[%clk 0:01:37]}  Nb6 {[%clk 0:01:45]} 18. Qc2 {[%clk 0:01:18]}  Nexc4 {[%clk 0:00:40]} 19. Nxc4 {[%clk 0:01:19]}  Nxc4 {[%clk 0:00:37]} 20. Qxc4 {[%clk 0:01:20]}  Rfc8 {[%clk 0:00:37]} 21. Qe2 {[%clk 0:01:13]}  a4 {[%clk 0:00:36]} 22. b6 {[%clk 0:01:04]}  e5 {[%clk 0:00:25]} 23. Bxe5 {[%clk 0:01:03]}  Qxb6 {[%clk 0:00:26]} 24. Qg4 {[%clk 0:01:02]}  Bf6 {[%clk 0:00:24]} 25. Bxf6 {[%clk 0:00:59]}  Qxf6 {[%clk 0:00:25]} 26. Rac1 {[%clk 0:00:59]}  Rxc1 {[%clk 0:00:23]} 27. Rxc1 {[%clk 0:01:00]}  g6 {[%clk 0:00:22]} 28. h4 {[%clk 0:00:50]}  Qb2 {[%clk 0:00:19]} 29. Rc8+ {[%clk 0:00:44]}  Rxc8 {[%clk 0:00:19]} 30. Qxc8+ {[%clk 0:00:45]}  Kg7 {[%clk 0:00:20]} 31. Qc5 {[%clk 0:00:45]}  Qb3 {[%clk 0:00:12]} 32. g3 {[%clk 0:00:40]}  h5 {[%clk 0:00:11]} 33. Qd6 {[%clk 0:00:38]}  Qb1+ {[%clk 0:00:09]} 34. Kg2 {[%clk 0:00:37]}  Qe4+ {[%clk 0:00:10]} 35. Kh2 {[%clk 0:00:38]}  Qc2 {[%clk 0:00:08]} 36. Qd4+ {[%clk 0:00:35]}  Kg8 {[%clk 0:00:08]} 37. Kg2 {[%clk 0:00:35]}  Qc6+ {[%clk 0:00:07]} 38. e4 {[%clk 0:00:34]}  Kh7 {[%clk 0:00:07]} 39. Qd5 {[%clk 0:00:31]}  Qc7 {[%clk 0:00:03]} 40. e5 {[%clk 0:00:31]}  Qa7 {[%clk 0:00:03]} 41. Kf3 {[%clk 0:00:27]}  Qe7 {[%clk 0:00:03]} 42. Qd6 {[%clk 0:00:25]}  Qb7+ {[%clk 0:00:02]} 43. Kf4 {[%clk 0:00:22]}  Qa7 {[%clk 0:00:03]} 44. f3 {[%clk 0:00:20]}  Qg1 {[%clk 0:00:02]} 45. Qd2 {[%clk 0:00:10]}  Qc5 {[%clk 0:00:02]} 46. Qe3 {[%clk 0:00:09]}  Qe7 {[%clk 0:00:02]} 47. Qd4 {[%clk 0:00:08]}  Qxa3 {[%clk 0:00:01]} 48. e6 {[%clk 0:00:07]}  Qe7 {[%clk 0:00:01]} 49. Qd7 {[%clk 0:00:08]}  Qxe6 {[%clk 0:00:01]} 50. Qxa4 {[%clk 0:00:08]}  Qd6+ {[%clk 0:00:01]} 51. Ke3 {[%clk 0:00:08]}  Qxg3 {[%clk 0:00:02]} 52. Qc4 {[%clk 0:00:07]}  Qe1+ {[%clk 0:00:02]} 53. Kf4 {[%clk 0:00:04]}  Qxh4+ {[%clk 0:00:02]} 0-1

[Event "December 12 Early 2023"]
[Site "https://www.chess.com"]
[Date "2023.12.12"]
[Round "2"]
[White "Alexandre, Anne Shopie Elizabeth"]
[Black "Karas, Marek"]
[Result "1-0"]
[Board "63"]
[TimeControl "180+1"]
[WhiteFideId "11902418"]
[BlackFideId "14928558"]
[WhiteElo "2787"]
[BlackElo "2545"]
[WhiteTeam "HAI"]
[BlackTeam "CZE"]
[WhiteClock "0:01:22"]
[BlackClock "0:00:00"]

1. e4 {[%clk 0:03:00]}  e6 {[%clk 0:03:00]} 2. d4 {[%clk 0:03:00]}  d5 {[%clk 0:03:00]} 3. Nc3 {[%clk 0:02:58]}  Nf6 {[%clk 0:03:00]} 4. e5 {[%clk 0:02:58]}  Nfd7 {[%clk 0:02:59]} 5. f4 {[%clk 0:02:58]}  c5 {[%clk 0:03:00]} 6. Nf3 {[%clk 0:02:59]}  Nc6 {[%clk 0:03:00]} 7. Be3 {[%clk 0:02:58]}  Be7 {[%clk 0:03:01]} 8. Qd2 {[%clk 0:02:56]}  O-O {[%clk 0:03:01]} 9. Ne2 {[%clk 0:02:51]}  b6 {[%clk 0:02:57]} 10. c3 {[%clk 0:02:50]}  f5 {[%clk 0:02:55]} 11. h3 {[%clk 0:02:45]}  Ba6 {[%clk 0:02:48]} 12. g4 {[%clk 0:02:45]}  Bxe2 {[%clk 0:02:44]} 13. Bxe2 {[%clk 0:02:45]}  cxd4 {[%clk 0:02:44]} 14. Nxd4 {[%clk 0:02:37]}  Nxd4 {[%clk 0:02:35]} 15. cxd4 {[%clk 0:02:37]}  Bh4+ {[%clk 0:02:33]} 16. Kf1 {[%clk 0:02:32]}  fxg4 {[%clk 0:02:12]} 17. hxg4 {[%clk 0:02:28]}  g6 {[%clk 0:01:50]} 18. Kg2 {[%clk 0:02:26]}  Be7 {[%clk 0:01:45]} 19. Rac1 {[%clk 0:02:25]}  Rf7 {[%clk 0:01:43]} 20. Rc6 {[%clk 0:02:17]}  Nf8 {[%clk 0:01:43]} 21. Rhc1 {[%clk 0:02:16]}  Qe8 {[%clk 0:01:19]} 22. Qc2 {[%clk 0:02:14]}  Bd8 {[%clk 0:01:17]} 23. b4 {[%clk 0:02:05]}  Qe7 {[%clk 0:01:16]} 24. a3 {[%clk 0:02:01]}  a5 {[%clk 0:01:12]} 25. Qb3 {[%clk 0:02:00]}  axb4 {[%clk 0:01:11]} 26. axb4 {[%clk 0:02:00]}  Rg7 {[%clk 0:01:03]} 27. Rc8 {[%clk 0:01:58]}  Rxc8 {[%clk 0:01:02]} 28. Rxc8 {[%clk 0:01:58]}  h5 {[%clk 0:00:54]} 29. g5 {[%clk 0:01:58]}  Bc7 {[%clk 0:00:34]} 30. Bb5 {[%clk 0:01:49]}  Qf7 {[%clk 0:00:32]} 31. Qd3 {[%clk 0:01:46]}  Qf5 {[%clk 0:00:23]} 32. Qxf5 {[%clk 0:01:45]}  gxf5 {[%clk 0:00:24]} 33. Be2 {[%clk 0:01:42]}  h4 {[%clk 0:00:20]} 34. Kh3 {[%clk 0:01:41]}  Kh7 {[%clk 0:00:20]} 35. Kxh4 {[%clk 0:01:41]}  Ng6+ {[%clk 0:00:20]} 36. Kg3 {[%clk 0:01:41]}  Rd7 {[%clk 0:00:20]} 37. Bb5 {[%clk 0:01:40]}  Re7 {[%clk 0:00:20]} 38. Kf3 {[%clk 0:01:38]}  Kg7 {[%clk 0:00:20]} 39. Bd3 {[%clk 0:01:32]}  Kf7 {[%clk 0:00:19]} 40. b5 {[%clk 0:01:32]}  Nh4+ {[%clk 0:00:19]} 41. Kf2 {[%clk 0:01:32]}  Ng6 {[%clk 0:00:20]} 42. Bd2 {[%clk 0:01:32]}  Rd7 {[%clk 0:00:18]} 43. Ke3 {[%clk 0:01:31]}  Ne7 {[%clk 0:00:18]} 44. Rh8 {[%clk 0:01:29]}  Kg7 {[%clk 0:00:17]} 45. Rh6 {[%clk 0:01:27]}  Ng6 {[%clk 0:00:17]} 46. Be2 {[%clk 0:01:27]}  Rd8 {[%clk 0:00:09]} 47. Bh5 {[%clk 0:01:26]}  Nf8 {[%clk 0:00:10]} 48. Rf6 {[%clk 0:01:25]}  Rd7 {[%clk 0:00:09]} 49. Bb4 {[%clk 0:01:25]}  Rd8 {[%clk 0:00:00]} 50. Rf7+ {[%clk 0:01:22]} 1-0

[Event "December 12 Early 2023"]
[Site "https://www.chess.com"]
[Date "2023.12.12"]
[Round "2"]
[White "Kozak, Antoni"]
[Black "GMFYHR1"]
[Result "1-0"]
[Board "75"]
[TimeControl "180+1"]
[WhiteFideId "21832030"]
[WhiteElo "2744"]
[BlackElo "2508"]
[WhiteTeam "POL"]
[WhiteClock "0:01:52"]
[BlackClock "0:00:01"]

1. Nf3 {[%clk 0:03:00]}  Nf6 {[%clk 0:02:58]} 2. c4 {[%clk 0:03:00]}  g6 {[%clk 0:02:58]} 3. Nc3 {[%clk 0:02:58]}  Bg7 {[%clk 0:02:59]} 4. e4 {[%clk 0:02:59]}  O-O {[%clk 0:02:36]} 5. d4 {[%clk 0:02:58]}  d6 {[%clk 0:02:33]} 6. h3 {[%clk 0:02:59]}  Nbd7 {[%clk 0:02:30]} 7. Be3 {[%clk 0:02:58]}  e5 {[%clk 0:02:30]} 8. d5 {[%clk 0:02:58]}  Nh5 {[%clk 0:02:27]} 9. g3 {[%clk 0:02:56]}  f5 {[%clk 0:02:07]} 10. exf5 {[%clk 0:02:55]}  gxf5 {[%clk 0:02:07]} 11. Ng5 {[%clk 0:02:54]}  Ndf6 {[%clk 0:01:40]} 12. Be2 {[%clk 0:02:47]}  f4 {[%clk 0:00:47]} 13. Bd2 {[%clk 0:02:47]}  fxg3 {[%clk 0:00:47]} 14. Bxh5 {[%clk 0:02:47]}  gxf2+ {[%clk 0:00:46]} 15. Kf1 {[%clk 0:02:47]}  Nxh5 {[%clk 0:00:41]} 16. Qxh5 {[%clk 0:02:47]}  Bf5 {[%clk 0:00:42]} 17. Ne6 {[%clk 0:02:27]}  Bxe6 {[%clk 0:00:27]} 18. dxe6 {[%clk 0:02:27]}  Qf6 {[%clk 0:00:28]} 19. Qg4 {[%clk 0:02:21]}  h5 {[%clk 0:00:15]} 20. Qxh5 {[%clk 0:02:13]}  Qxe6 {[%clk 0:00:15]} 21. Qg4 {[%clk 0:02:14]}  Qf7 {[%clk 0:00:08]} 22. Rh2 {[%clk 0:02:10]}  Rae8 {[%clk 0:00:06]} 23. Rg2 {[%clk 0:02:08]}  e4 {[%clk 0:00:05]} 24. Bh6 {[%clk 0:02:06]}  Qxc4+ {[%clk 0:00:04]} 25. Ne2 {[%clk 0:02:07]}  Rf7 {[%clk 0:00:01]} 26. Bxg7 {[%clk 0:02:04]}  Qe6 {[%clk 0:00:01]} 27. Qg5 {[%clk 0:01:52]}  Kh7 {[%clk 0:00:01]} 28. Qh5+ {[%clk 0:01:52]}  Kg8 {[%clk 0:00:01]} 29. Qh8# {[%clk 0:01:52]} 1-0

[Event "December 12 Early 2023"]
[Site "https://www.chess.com"]
[Date "2023.12.12"]
[Round "2"]
[White "Krysa, Leandro"]
[Black "Azali, Tannaz"]
[Result "1-0"]
[Board "77"]
[TimeControl "180+1"]
[WhiteFideId "116807"]
[BlackFideId "12537721"]
[WhiteElo "2740"]
[BlackElo "2488"]
[WhiteTeam "ARG"]
[BlackTeam "IRI"]
[WhiteClock "0:00:11"]
[BlackClock "0:00:20"]

1. e4 {[%clk 0:03:00]}  c5 {[%clk 0:02:59]} 2. Nf3 {[%clk 0:03:00]}  e6 {[%clk 0:03:00]} 3. d4 {[%clk 0:02:58]}  cxd4 {[%clk 0:03:00]} 4. Nxd4 {[%clk 0:02:59]}  Nf6 {[%clk 0:03:01]} 5. Nc3 {[%clk 0:02:59]}  Nc6 {[%clk 0:03:01]} 6. a3 {[%clk 0:02:56]}  Be7 {[%clk 0:02:59]} 7. Be2 {[%clk 0:02:49]}  O-O {[%clk 0:02:46]} 8. Be3 {[%clk 0:02:47]}  d5 {[%clk 0:02:45]} 9. exd5 {[%clk 0:02:45]}  Nxd5 {[%clk 0:02:45]} 10. Nxd5 {[%clk 0:02:44]}  Qxd5 {[%clk 0:02:40]} 11. Bf3 {[%clk 0:02:44]}  Qd7 {[%clk 0:02:20]} 12. Nxc6 {[%clk 0:02:35]}  bxc6 {[%clk 0:02:20]} 13. Qxd7 {[%clk 0:02:29]}  Bxd7 {[%clk 0:02:20]} 14. O-O-O {[%clk 0:02:30]}  Be8 {[%clk 0:02:05]} 15. Rd3 {[%clk 0:02:27]}  f5 {[%clk 0:02:05]} 16. Rhd1 {[%clk 0:02:14]}  e5 {[%clk 0:02:03]} 17. Rc3 {[%clk 0:01:56]}  e4 {[%clk 0:01:36]} 18. Be2 {[%clk 0:01:55]}  Bf6 {[%clk 0:01:17]} 19. Bd4 {[%clk 0:01:52]}  Kf7 {[%clk 0:01:11]} 20. Bc4+ {[%clk 0:01:47]}  Kg6 {[%clk 0:01:11]} 21. Rg3+ {[%clk 0:01:45]}  Kh6 {[%clk 0:01:09]} 22. h4 {[%clk 0:01:01]}  g6 {[%clk 0:01:07]} 23. Bc5 {[%clk 0:00:52]}  Rh8 {[%clk 0:01:00]} 24. Be3+ {[%clk 0:00:45]}  Kg7 {[%clk 0:01:01]} 25. h5 {[%clk 0:00:41]}  h6 {[%clk 0:00:47]} 26. hxg6 {[%clk 0:00:38]}  Be5 {[%clk 0:00:42]} 27. f4 {[%clk 0:00:33]}  exf3 {[%clk 0:00:38]} 28. Rxf3 {[%clk 0:00:32]}  Kxg6 {[%clk 0:00:38]} 29. Rdf1 {[%clk 0:00:26]}  Bd7 {[%clk 0:00:37]} 30. Bd3 {[%clk 0:00:25]}  Rhf8 {[%clk 0:00:35]} 31. g4 {[%clk 0:00:25]}  Rf6 {[%clk 0:00:25]} 32. gxf5+ {[%clk 0:00:25]}  Kh7 {[%clk 0:00:25]} 33. Rh1 {[%clk 0:00:19]}  Raf8 {[%clk 0:00:25]} 34. Rfh3 {[%clk 0:00:19]}  Bxf5 {[%clk 0:00:19]} 35. Bxf5+ {[%clk 0:00:17]}  Rxf5 {[%clk 0:00:20]} 36. Rxh6+ {[%clk 0:00:16]}  Kg7 {[%clk 0:00:20]} 37. Rxc6 {[%clk 0:00:13]}  Rh8 {[%clk 0:00:17]} 38. Rxh8 {[%clk 0:00:11]}  Kxh8 {[%clk 0:00:18]} 39. Rc5 {[%clk 0:00:11]}  Kg7 {[%clk 0:00:17]} 40. Kd2 {[%clk 0:00:10]}  Kf6 {[%clk 0:00:17]} 41. c3 {[%clk 0:00:09]}  Ke6 {[%clk 0:00:17]} 42. Bd4 {[%clk 0:00:08]}  Rh5 {[%clk 0:00:18]} 43. Rxe5+ {[%clk 0:00:08]}  Rxe5 {[%clk 0:00:18]} 44. Bxe5 {[%clk 0:00:09]}  Kxe5 {[%clk 0:00:19]} 45. Kd3 {[%clk 0:00:10]}  Kd5 {[%clk 0:00:20]} 46. a4 {[%clk 0:00:10]}  a5 {[%clk 0:00:21]} 47. b4 {[%clk 0:00:11]}  axb4 {[%clk 0:00:20]} 48. cxb4 {[%clk 0:00:11]} 1-0

[Event "December 12 Early 2023"]
[Site "https://www.chess.com"]
[Date "2023.12.12"]
[Round "2"]
[White "Dann, Matthias"]
[Black "Krzyzanowski, Marcin"]
[Result "0-1"]
[Board "78"]
[TimeControl "180+1"]
[WhiteFideId "24638056"]
[BlackFideId "1132199"]
[WhiteElo "2484"]
[BlackElo "2737"]
[WhiteTeam "GER"]
[BlackTeam "POL"]
[WhiteClock "0:00:00"]
[BlackClock "0:00:04"]

1. e4 {[%clk 0:03:00]}  c5 {[%clk 0:02:59]} 2. Nf3 {[%clk 0:03:01]}  d6 {[%clk 0:02:59]} 3. d4 {[%clk 0:03:02]}  cxd4 {[%clk 0:03:00]} 4. Nxd4 {[%clk 0:03:02]}  Nf6 {[%clk 0:03:01]} 5. Nc3 {[%clk 0:03:03]}  a6 {[%clk 0:03:02]} 6. h3 {[%clk 0:03:04]}  e5 {[%clk 0:03:00]} 7. Nf3 {[%clk 0:03:04]}  Be7 {[%clk 0:02:57]} 8. Be3 {[%clk 0:03:02]}  Be6 {[%clk 0:02:51]} 9. Ng5 {[%clk 0:03:00]}  O-O {[%clk 0:02:34]} 10. Nxe6 {[%clk 0:02:55]}  fxe6 {[%clk 0:02:35]} 11. Bc4 {[%clk 0:02:55]}  Qc8 {[%clk 0:02:33]} 12. Bb3 {[%clk 0:02:56]}  b5 {[%clk 0:01:53]} 13. Qd3 {[%clk 0:02:55]}  Kh8 {[%clk 0:01:51]} 14. O-O-O {[%clk 0:02:54]}  Nc6 {[%clk 0:01:50]} 15. Kb1 {[%clk 0:02:47]}  Na5 {[%clk 0:01:39]} 16. f4 {[%clk 0:02:34]}  Nc4 {[%clk 0:01:33]} 17. fxe5 {[%clk 0:02:28]}  dxe5 {[%clk 0:01:25]} 18. Bc1 {[%clk 0:02:07]}  Qc6 {[%clk 0:01:23]} 19. g4 {[%clk 0:01:55]}  Bb4 {[%clk 0:01:10]} 20. g5 {[%clk 0:01:50]}  Nh5 {[%clk 0:01:10]} 21. Ne2 {[%clk 0:01:31]}  a5 {[%clk 0:00:53]} 22. a4 {[%clk 0:01:15]}  Rac8 {[%clk 0:00:38]} 23. axb5 {[%clk 0:01:11]}  Qxb5 {[%clk 0:00:38]} 24. Qd7 {[%clk 0:01:04]}  Qa6 {[%clk 0:00:25]} 25. Rhf1 {[%clk 0:00:54]}  Nb6 {[%clk 0:00:15]} 26. Qd3 {[%clk 0:00:16]}  Qxd3 {[%clk 0:00:15]} 27. cxd3 {[%clk 0:00:17]}  Rfe8 {[%clk 0:00:10]} 28. Be3 {[%clk 0:00:14]}  a4 {[%clk 0:00:09]} 29. Bc2 {[%clk 0:00:12]}  Bc5 {[%clk 0:00:07]} 30. Bxc5 {[%clk 0:00:06]}  Rxc5 {[%clk 0:00:08]} 31. Rf7 {[%clk 0:00:05]}  Kg8 {[%clk 0:00:08]} 32. Rb7 {[%clk 0:00:04]}  Rc6 {[%clk 0:00:06]} 33. Nc3 {[%clk 0:00:04]}  a3 {[%clk 0:00:07]} 34. Na4 {[%clk 0:00:03]}  Nc8 {[%clk 0:00:03]} 35. bxa3 {[%clk 0:00:03]}  Nf4 {[%clk 0:00:03]} 36. Rb4 {[%clk 0:00:03]}  Nd6 {[%clk 0:00:03]} 37. Nb2 {[%clk 0:00:03]}  Ne2 {[%clk 0:00:04]} 38. Re1 {[%clk 0:00:02]}  Nc3+ {[%clk 0:00:04]} 39. Ka1 {[%clk 0:00:02]}  Ra8 {[%clk 0:00:05]} 40. Ba4 {[%clk 0:00:02]}  Rca6 {[%clk 0:00:04]} 41. Rc1 {[%clk 0:00:01]}  Nxa4 {[%clk 0:00:04]} 42. Nxa4 {[%clk 0:00:02]}  Rxa4 {[%clk 0:00:05]} 43. Rxa4 {[%clk 0:00:01]}  Rxa4 {[%clk 0:00:06]} 44. Kb2 {[%clk 0:00:02]}  Kf7 {[%clk 0:00:05]} 45. Kb3 {[%clk 0:00:03]}  Ra6 {[%clk 0:00:05]} 46. a4 {[%clk 0:00:04]}  Ke7 {[%clk 0:00:05]} 47. Kb4 {[%clk 0:00:05]}  Kd7 {[%clk 0:00:05]} 48. a5 {[%clk 0:00:05]}  Rc6 {[%clk 0:00:05]} 49. Ra1 {[%clk 0:00:03]}  Kc7 {[%clk 0:00:04]} 50. h4 {[%clk 0:00:02]}  Kb7 {[%clk 0:00:04]} 51. h5 {[%clk 0:00:03]}  Nf7 {[%clk 0:00:04]} 52. g6 {[%clk 0:00:02]}  hxg6 {[%clk 0:00:04]} 53. hxg6 {[%clk 0:00:03]}  Nh6 {[%clk 0:00:03]} 54. Rf1 {[%clk 0:00:02]}  Rd6 {[%clk 0:00:03]} 55. Rf8 {[%clk 0:00:02]}  Rd4+ {[%clk 0:00:03]} 56. Kc5 {[%clk 0:00:01]}  Rxd3 {[%clk 0:00:03]} 57. Re8 {[%clk 0:00:02]}  Rd7 {[%clk 0:00:03]} 58. Rxe6 {[%clk 0:00:02]}  Ng4 {[%clk 0:00:03]} 59. Kb5 {[%clk 0:00:02]}  Ka7 {[%clk 0:00:02]} 60. a6 {[%clk 0:00:01]}  Nf6 {[%clk 0:00:01]} 61. Rxe5 {[%clk 0:00:02]}  Rc7 {[%clk 0:00:01]} 62. Re6 {[%clk 0:00:01]}  Nd7 {[%clk 0:00:02]} 63. e5 {[%clk 0:00:01]}  Rc5+ {[%clk 0:00:02]} 64. Kb4 {[%clk 0:00:02]}  Rxe5 {[%clk 0:00:03]} 65. Rxe5 {[%clk 0:00:02]}  Nxe5 {[%clk 0:00:03]} 66. Kc5 {[%clk 0:00:03]}  Nxg6 {[%clk 0:00:04]} 67. Kd5 {[%clk 0:00:00]}  Nf8 {[%clk 0:00:04]} 0-1

[Event "December 12 Early 2023"]
[Site "https://www.chess.com"]
[Date "2023.12.12"]
[Round "2"]
[White "Arslanov, Shamil"]
[Black "Liu, Casper"]
[Result "1-0"]
[Board "83"]
[TimeControl "180+1"]
[WhiteFideId "4192826"]
[BlackFideId "1454153"]
[WhiteElo "2719"]
[BlackElo "2461"]
[WhiteTeam "RUS"]
[BlackTeam "DEN"]
[WhiteClock "0:01:48"]
[BlackClock "0:01:41"]

1. e4 {[%clk 0:03:00]}  c6 {[%clk 0:03:00]} 2. d4 {[%clk 0:02:57]}  d5 {[%clk 0:03:01]} 3. Nc3 {[%clk 0:02:57]}  dxe4 {[%clk 0:03:01]} 4. Bc4 {[%clk 0:02:57]}  Nf6 {[%clk 0:03:01]} 5. f3 {[%clk 0:02:57]}  exf3 {[%clk 0:03:01]} 6. Nxf3 {[%clk 0:02:58]}  Bf5 {[%clk 0:02:59]} 7. O-O {[%clk 0:02:57]}  e6 {[%clk 0:02:59]} 8. Ng5 {[%clk 0:02:58]}  Bg6 {[%clk 0:02:48]} 9. Bxe6 {[%clk 0:02:53]}  fxe6 {[%clk 0:02:47]} 10. Nxe6 {[%clk 0:02:53]}  Qc8 {[%clk 0:02:28]} 11. Bg5 {[%clk 0:02:50]}  Be7 {[%clk 0:02:17]} 12. Nxg7+ {[%clk 0:02:42]}  Kf7 {[%clk 0:02:14]} 13. Nh5 {[%clk 0:02:42]}  Bf5 {[%clk 0:01:49]} 14. Nxf6 {[%clk 0:02:37]}  Bxf6 {[%clk 0:01:48]} 15. Qh5+ {[%clk 0:02:36]}  Kg7 {[%clk 0:01:48]} 16. Bh6+ {[%clk 0:02:13]}  Kg8 {[%clk 0:01:45]} 17. Rxf5 {[%clk 0:02:12]}  Nd7 {[%clk 0:01:40]} 18. Qg4+ {[%clk 0:01:49]}  Kf7 {[%clk 0:01:40]} 19. Qg7+ {[%clk 0:01:50]}  Ke6 {[%clk 0:01:41]} 20. Re1+ {[%clk 0:01:49]}  Kxf5 {[%clk 0:01:41]} 21. g4# {[%clk 0:01:48]} 1-0